bitfinex/quotes_SOLUSD_20211001
["timestamp","ask_amount","ask_price","bid_price","bid_amount"]
[1633062035343,0.09005594,140.56,140.47,5.63542961]
[1633062035549,0.09005594,140.56,140.48,3.02]
[1633062035752,0.09005594,140.56,140.48,3.0412976]
[1633062036144,0.09005594,140.56,140.49,5.63542961]
[1633062036347,0.09005594,140.56,140.5,3.02]
[1633062036543,0.09005594,140.56,140.51,3.02]
[1633062036744,0.09005594,140.56,140.52,3.02]
[1633062038547,0.09005594,140.56,140.5,3.02]
[1633062039548,16.65805594,140.56,140.5,3.02]
[1633062039746,24.10525205,140.55,140.5,3.02]
[1633062040147,5.63542961,140.54,140.48,3.02]
[1633062041549,5.63542961,140.54,140.46,29.73841071]
[1633062041949,5.63542961,140.54,140.46,26.71841071]
[1633062042349,8.65542961,140.54,140.46,26.71841071]
[1633062042950,24.10525205,140.55,140.46,26.71841071]
[1633062043351,5.63542961,140.54,140.46,26.71841071]
[1633062043553,22.85042961,140.54,140.46,26.71841071]
[1633062047453,17.215,140.54,140.46,26.71841071]
[1633062048251,22.85042961,140.54,140.46,26.71841071]
[1633062057460,17.8128,140.52,140.46,26.71841071]
[1633062057662,30.32966512,140.51,140.46,26.71841071]
[1633062057862,58.92209473,140.51,140.46,26.71841071]
[1633062058061,53.28666512,140.51,140.46,26.71841071]
[1633062058261,5.63542961,140.5,140.46,26.71841071]
[1633062061768,26.71841071,140.46,140.41,3.02]
[1633062061966,43.62941071,140.46,140.41,3.02]
[1633062062167,26.84842098,140.45,140.41,3.02]
[1633062062966,26.71841071,140.46,140.41,3.02]
[1633062064969,32.35384032,140.46,140.41,3.02]
[1633062065971,26.71841071,140.46,140.41,3.02]
[1633062066372,32.35384032,140.46,140.41,3.02]
[1633062066774,26.71841071,140.46,140.41,3.02]
[1633062067172,32.35384032,140.46,140.41,3.02]
[1633062070075,32.35384032,140.46,140.39,3.02]
[1633062071780,26.71841071,140.46,140.39,3.02]
[1633062074578,32.35384032,140.46,140.39,3.02]
[1633062074777,26.71841071,140.46,140.39,3.02]
[1633062080684,26.71841071,140.46,140.4,1.87146771]
[1633062080884,26.71841071,140.46,140.42,1.86318684]
[1633062081084,26.71841071,140.46,140.44,1.84775962]
[1633062081483,26.71841071,140.46,140.43,1.84900471]
[1633062082086,26.71841071,140.46,140.42,3.02]
[1633062084088,26.71841071,140.46,140.42,4.8688199]
[1633062084285,9.68613866,140.52,140.44,1.83356735]
[1633062084485,9.68613866,140.52,140.47,1.80675952]
[1633062084687,3.02,140.57,140.48,1.80184755]
[1633062084884,3.02,140.59,140.48,3.02]
[1633062085085,88.13932126,140.58,140.49,2.57824335]
[1633062085285,28.13932126,140.58,140.49,2.57824335]
[1633062087087,0.09005594,140.56,140.49,2.57824335]
[1633062087988,0.09005594,140.56,140.5,3.02]
[1633062090992,0.09005594,140.56,140.48,3.02]
[1633062091594,5.72548555,140.56,140.48,3.02]
[1633062091795,30.01825237,140.55,140.45,3.02]
[1633062092196,5.63542961,140.54,140.45,3.02]
[1633062092395,29.15842961,140.54,140.45,3.02]
[1633062092601,23.523,140.54,140.45,3.02]
[1633062092796,15.5993224,140.56,140.45,3.02]
[1633062093798,40.95403405,140.56,140.45,3.02]
[1633062094895,5.63542961,140.55,140.45,3.02]
[1633062095498,17.813,140.52,140.42,79.8744976]
[1633062095696,33.023,140.52,140.43,3.02]
[1633062095896,5.63542961,140.51,140.43,3.02]
[1633062096097,33.023,140.52,140.43,3.02]
[1633062096297,21.38999443,140.51,140.43,3.02]
[1633062096896,21.38999443,140.51,140.39,4.70107274]
[1633062096897,21.38999443,140.51,140.39,1.85379368]
[1633062097099,5.63542961,140.5,140.41,3.02]
[1633062097299,5.63542961,140.5,140.39,3.02]
[1633062098095,21.22011779,140.5,140.39,3.02]
[1633062098499,27.06113431,140.48,140.39,3.02]
[1633062098696,46.45813431,140.48,140.39,3.02]
[1633062100901,49.47813431,140.48,140.37,438.69053349]
[1633062101100,49.47813431,140.48,140.37,4.87958494]
[1633062101300,49.47813431,140.48,140.37,3.02]
[1633062102101,55.11356392,140.48,140.37,3.02]
[1633062102300,55.11356392,140.48,140.36,1.86331829]
[1633062102701,64.53136655,140.48,140.36,1.86331829]
[1633062104507,58.89593694,140.48,140.36,1.86331829]
[1633062104707,64.53136655,140.48,140.36,1.86331829]
[1633062105517,64.53136655,140.48,140.37,1.86423026]
[1633062105706,64.53136655,140.48,140.36,1.86710404]
[1633062105907,64.53136655,140.48,140.37,1.88852634]
[1633062107908,64.53136655,140.48,140.36,1.9094185]
[1633062108709,64.53136655,140.48,140.37,1.90946288]
[1633062108909,64.53136655,140.48,140.36,1.90686245]
[1633062109309,64.53136655,140.48,140.37,1.91366823]
[1633062110618,28.17399632,140.47,140.37,1.91366823]
[1633062110813,3.02,140.46,140.35,74.5497]
[1633062111012,24.16469607,140.46,140.35,74.5497]
[1633062111214,28.17399632,140.45,140.35,74.5497]
[1633062111412,3.02,140.44,140.35,74.5497]
[1633062111613,47.05952548,140.44,140.33,1.94286947]
[1633062111813,75.2335218,140.44,140.33,1.94286947]
[1633062112013,15.52007777,140.43,140.33,1.94286947]
[1633062112219,18.54007777,140.43,140.33,1.94286947]
[1633062113119,97.44807777,140.43,140.33,1.94286947]
[1633062113714,18.54007777,140.43,140.33,1.94286947]
[1633062114917,18.54007777,140.43,140.32,1.94530471]
[1633062115115,18.54007777,140.43,140.33,1.94531413]
[1633062115316,18.54007777,140.43,140.32,1.9450235]
[1633062115516,18.54007777,140.43,140.33,1.94383999]
[1633062115918,18.54007777,140.43,140.34,1.93593012]
[1633062118926,18.54007777,140.43,140.35,1.94528251]
[1633062119125,18.54007777,140.43,140.34,1.94745537]
[1633062120125,18.54007777,140.43,140.35,1.98749395]
[1633062121225,9.4218302,140.42,140.35,1.98749395]
[1633062121426,1.57528217,140.34,140.32,0.0212976]
[1633062121628,1.57528217,140.34,140.31,15.25016586]
[1633062121829,1.57528217,140.34,140.32,8.2534168]
[1633062123829,1.57528217,140.34,140.32,12.24468777]
[1633062124028,1.57528217,140.34,140.32,8.2534168]
[1633062124228,1.57528217,140.34,140.32,12.24449836]
[1633062124429,1.57528217,140.34,140.32,8.2534168]
[1633062124831,1.57528217,140.34,140.32,12.24471851]
[1633062126732,1.57528217,140.34,140.33,3.9889255]
[1633062132658,1.57528217,140.34,140.32,8.2534168]
[1633062132958,1.57528217,140.34,140.32,11.2734168]
[1633062133558,1.57528217,140.34,140.33,8.25286233]
[1633062135774,1.57528217,140.34,140.33,14.2303502]
[1633062138177,1.57528217,140.34,140.33,8.25286233]
[1633062139179,1.57528217,140.34,140.31,14.39386667]
[1633062142782,1.57528217,140.34,140.32,6.05884278]
[1633062143981,1.57528217,140.34,140.33,6.08421541]
[1633062144585,1.57528217,140.34,140.33,9.10421541]
[1633062144786,1.57528217,140.34,140.33,17.35663764]
[1633062144984,1.57528217,140.34,140.33,11.27242223]
[1633062145386,8.217e-05,140.34,140.33,11.27242223]
[1633062145583,9.4218302,140.42,140.33,11.27242223]
[1633062145783,395.30730987,140.46,140.4,3.9817145]
[1633062146584,385.61702889,140.46,140.4,3.9817145]
[1633062147585,385.61702889,140.46,140.41,3.92977834]
[1633062147785,26.02388995,140.47,140.41,12.17870413]
[1633062147986,3.02,140.49,140.4,12.17938404]
[1633062148189,12.7068288,140.51,140.41,3.92060096]
[1633062148384,12.7068288,140.51,140.41,12.16907164]
[1633062148585,9.6868288,140.51,140.42,3.02]
[1633062148784,9.6868288,140.51,140.43,8.24812269]
[1633062148984,29.22866485,140.51,140.43,8.24812269]
[1633062149185,29.22866485,140.51,140.43,12.30882834]
[1633062149984,29.22866485,140.51,140.43,8.24812269]
[1633062150387,29.22866485,140.51,140.42,3.02]
[1633062151988,310.88126797,140.52,140.42,3.02]
[1633062152388,18.06975291,140.55,140.43,8.24750273]
[1633062152586,76.9845,140.54,140.44,3.02]
[1633062152986,76.9845,140.54,140.45,8.2462704]
[1633062153188,0.09005594,140.56,140.46,3.02]
[1633062153387,0.09005594,140.56,140.47,3.02]
[1633062153588,0.09005594,140.56,140.48,3.02]
[1633062157891,0.09005594,140.56,140.48,8.65542961]
[1633062158490,0.09005594,140.56,140.48,3.02]
[1633062168097,230.7640208,140.62,140.49,54.0]
[1633062168298,24.20081526,140.62,140.5,3.02]
[1633062168497,24.20081526,140.62,140.51,75.4312976]
[1633062168698,3.04088,140.72,140.54,75.41]
[1633062168896,3.04088,140.72,140.55,3.02]
[1633062169296,3.04088,140.72,140.56,5.63542961]
[1633062169498,3.04088,140.72,140.57,3.02]
[1633062169697,53.32974549,140.72,140.57,3.02]
[1633062169902,53.32974549,140.72,140.58,5.63542961]
[1633062170097,53.32974549,140.72,140.59,3.02]
[1633062170300,362.3157932,140.72,140.59,3.02]
[1633062171099,340.27314625,140.72,140.59,3.02]
[1633062171897,17.7873,140.71,140.59,3.02]
[1633062172097,22.69600087,140.7,140.59,3.02]
[1633062173103,17.7873,140.71,140.59,3.02]
[1633062174097,47.1362484,140.71,140.59,3.02]
[1633062175100,17.7873,140.71,140.59,3.02]
[1633062175298,308.98604771,140.72,140.6,5.63542961]
[1633062175500,308.98604771,140.72,140.61,3.02]
[1633062175698,165.47247489,140.75,140.61,3.02]
[1633062176099,23.32825362,140.74,140.61,3.02]
[1633062179998,51.52056651,140.74,140.61,3.02]
[1633062180398,57.15599612,140.74,140.61,3.02]
[1633062182203,51.52056651,140.74,140.61,3.02]
[1633062182404,57.15599612,140.74,140.61,3.02]
[1633062183806,51.52056651,140.74,140.61,3.02]
[1633062184204,17.7842,140.73,140.61,3.02]
[1633062187207,40.92327382,140.73,140.61,3.02]
[1633062188309,17.7842,140.73,140.61,3.02]
[1633062189512,17.7842,140.73,140.61,8.65542961]
[1633062189710,17.7842,140.73,140.61,3.02]
[1633062190110,28.60828697,140.72,140.61,3.02]
[1633062192311,28.60828697,140.72,140.61,8.65542961]
[1633062192514,17.7842,140.73,140.61,8.65542961]
[1633062192712,17.7842,140.73,140.61,3.02]
[1633062193911,39.07587849,140.73,140.62,8.23692555]
[1633062194113,39.07587849,140.73,140.63,3.02]
[1633062194913,17.7842,140.73,140.63,3.02]
[1633062196713,9.39890663,140.77,140.65,3.67848351]
[1633062196914,9.39890663,140.77,140.67,3.66353807]
[1633062197112,9.39890663,140.77,140.68,3.02]
[1633062197314,28.19231289,140.79,140.68,22.13818599]
[1633062197712,28.19231289,140.79,140.69,8.23294599]
[1633062197912,28.19231289,140.79,140.7,3.02]
[1633062199312,22.47692309,140.78,140.7,3.02]
[1633062199912,28.1123527,140.78,140.7,3.02]
[1633062200113,28.19231289,140.79,140.7,3.02]
[1633062201115,33.8277425,140.79,140.7,3.02]
[1633062201518,58.41549953,140.79,140.7,3.02]
[1633062202114,33.8277425,140.79,140.7,3.02]
[1633062203814,28.19231289,140.79,140.7,3.02]
[1633062204514,33.8277425,140.79,140.7,3.02]
[1633062204914,5.63542961,140.79,140.7,3.02]
[1633062205114,9.3957124,140.81,140.7,3.02]
[1633062205915,5.63542961,140.8,140.7,3.02]
[1633062206316,17.7799,140.77,140.7,3.02]
[1633062206517,22.15250831,140.76,140.7,3.02]
[1633062206715,5.63542961,140.76,140.7,3.02]
[1633062207316,5.63542961,140.76,140.68,3.02]
[1633062207715,79.0,140.75,140.63,2.87239627]
[1633062207915,104.6382965,140.75,140.64,3.02]
[1633062208117,5.63542961,140.74,140.64,3.02]
[1633062208316,24.72142961,140.74,140.64,3.02]
[1633062208716,5.63542961,140.73,140.64,3.02]
[1633062208915,22.74336001,140.72,140.64,3.02]
[1633062210917,83.50592961,140.76,140.64,3.02]
[1633062211917,25.37607937,140.75,140.64,3.02]
[1633062212321,5.63542961,140.74,140.64,3.02]
[1633062213622,25.37607937,140.75,140.64,3.02]
[1633062214019,25.37607937,140.75,140.65,8.23322349]
[1633062214219,25.37607937,140.75,140.66,3.02]
[1633062215023,5.63542961,140.74,140.66,3.02]
[1633062225629,28.20542961,140.74,140.66,3.02]
[1633062226030,23.41982961,140.73,140.63,3.02]
[1633062226229,22.9821557,140.72,140.63,3.02]
[1633062226429,28.61758531,140.72,140.63,3.02]
[1633062226631,5.63542961,140.71,140.63,3.02]
[1633062232442,28.83145357,140.68,140.63,3.02]
[1633062237544,5.63542961,140.67,140.63,3.02]
[1633062241349,3.55517634,140.64,140.63,3.02]
[1633062241555,32.95979441,140.64,140.63,4.87980313]
[1633062244255,4.0,140.63,140.56,143.98319688]
[1633062244455,20.653,140.63,140.57,11.25804857]
[1633062244680,5.63542961,140.62,140.58,8.23841278]
[1633062244856,30.01889579,140.61,140.59,3.02]
[1633062246655,20.653,140.63,140.59,3.02]
[1633062247558,29.11860052,140.62,140.59,3.02]
[1633062248463,29.11860052,140.62,140.56,3.02]
[1633062248665,29.11860052,140.62,140.57,8.23793253]
[1633062250879,3.55517634,140.64,140.57,8.23793253]
[1633062251880,26.5369859,140.63,140.57,8.23793253]
[1633062253683,32.17241551,140.63,140.57,8.23793253]
[1633062254987,26.5369859,140.63,140.57,8.23793253]
[1633062259491,32.17241551,140.63,140.57,8.23793253]
[1633062260290,5.63542961,140.63,140.57,8.23793253]
[1633062260494,3.55517634,140.64,140.57,8.23793253]
[1633062261293,25.01139334,140.64,140.57,8.23793253]
[1633062261495,30.64682295,140.64,140.57,8.23793253]
[1633062261891,9.19060595,140.64,140.57,8.23793253]
[1633062262092,3.55517634,140.64,140.58,3.02]
[1633062262291,3.55517634,140.64,140.59,8.23654221]
[1633062263092,28.03682351,140.63,140.59,8.23654221]
[1633062264494,3.55517634,140.64,140.59,8.23654221]
[1633062266299,9.19060595,140.64,140.59,8.23654221]
[1633062267295,3.55517634,140.64,140.59,8.23654221]
[1633062269798,9.19060595,140.64,140.59,8.23654221]
[1633062274707,3.55517634,140.64,140.59,8.23654221]
[1633062275111,3.55517634,140.64,140.59,14.15475449]
[1633062279415,3.55517634,140.64,140.59,8.23654221]
[1633062279614,31.96902668,140.64,140.59,8.23654221]
[1633062280715,37.60445629,140.64,140.59,8.23654221]
[1633062281716,37.60445629,140.64,140.58,5.94012925]
[1633062284122,37.60445629,140.64,140.57,14.21343918]
[1633062286421,37.60445629,140.64,140.58,5.95147573]
[1633062286622,9.19060595,140.64,140.58,5.95147573]
[1633062286821,3.55517634,140.64,140.58,8.97147573]
[1633062287022,3.55517634,140.64,140.59,8.23683931]
[1633062287423,3.55517634,140.64,140.6,5.88413323]
[1633062289723,3.55517634,140.64,140.61,6.12909324]
[1633062289926,3.55517634,140.64,140.61,14.36593204]
[1633062290123,3.55517634,140.64,140.61,6.12909324]
[1633062293926,3.55517634,140.64,140.6,6.11271544]
[1633062294931,3.55517634,140.64,140.61,6.09516124]
[1633062298237,3.55517634,140.64,140.63,4.11702627]
[1633062301936,3.55517634,140.64,140.62,4.10348234]
[1633062302139,3.55517634,140.64,140.63,4.10813276]
[1633062302340,3.55517634,140.64,140.62,4.11100794]
[1633062302736,3.55517634,140.64,140.63,4.09690376]
[1633062302938,3.55517634,140.64,140.63,12.33406163]
[1633062303140,3.55517634,140.64,140.59,14.40505777]
[1633062303537,3.55517634,140.64,140.6,6.14688445]
[1633062305541,3.55517634,140.64,140.61,6.15506629]
[1633062306641,3.55517634,140.64,140.63,4.11724369]
[1633062307441,5.63542961,140.67,140.63,4.11724369]
[1633062307843,5.63542961,140.68,140.63,4.11724369]
[1633062308041,5.63542961,140.68,140.64,4.09385843]
[1633062308244,62.25310318,140.7,140.66,4.06672981]
[1633062308450,52.57991724,140.7,140.66,4.06672981]
[1633062308644,37.77252027,140.7,140.67,4.05396122]
[1633062308845,37.27252027,140.7,140.67,4.05396122]
[1633062309044,3.02,140.71,140.67,4.05396122]
[1633062309445,3.02,140.73,140.67,22.25396122]
[1633062309645,54.51859149,140.75,140.68,4.04424676]
[1633062309847,12.68960471,140.76,140.69,4.02295888]
[1633062310048,3.02,140.76,140.69,4.02295888]
[1633062310251,3.02,140.76,140.68,4.02135725]
[1633062311246,3.02,140.78,140.68,4.02135725]
[1633062311449,3.02,140.78,140.7,3.97451076]
[1633062311847,3.02,140.78,140.69,12.22058851]
[1633062312246,8.65542961,140.78,140.69,12.22058851]
[1633062312646,8.65542961,140.78,140.69,8.23227479]
[1633062313846,8.65542961,140.78,140.69,12.23571301]
[1633062314046,30.1630633,140.77,140.69,12.23571301]
[1633062314249,30.1630633,140.77,140.67,3.02]
[1633062314448,36.00307583,140.76,140.66,4.02392338]
[1633062314647,36.00307583,140.76,140.65,7.05571908]
[1633062314847,5.63542961,140.75,140.66,8.23324481]
[1633062315048,5.63542961,140.75,140.66,12.26879926]
[1633062316648,30.36764622,140.76,140.67,4.07481224]
[1633062317049,36.00307583,140.76,140.67,4.07481224]
[1633062323262,36.00307583,140.76,140.66,12.34482603]
[1633062324262,36.00307583,140.76,140.67,4.11151487]
[1633062326365,3.02,140.75,140.67,4.11151487]
[1633062326563,24.11076987,140.74,140.66,4.10786322]
[1633062327362,29.74619948,140.74,140.66,4.10786322]
[1633062331692,29.74619948,140.74,140.67,8.2337063]
[1633062331872,29.74619948,140.74,140.66,3.60786322]
[1633062334276,29.74619948,140.74,140.64,8.23369052]
[1633062334693,29.74619948,140.74,140.64,14.40450895]
[1633062335879,3.02,140.73,140.64,14.40450895]
[1633062336076,3.02,140.73,140.64,6.17081843]
[1633062336276,8.65542961,140.73,140.64,6.17081843]
[1633062336677,33.51115941,140.74,140.64,9.19081843]
[1633062336879,24.11076987,140.74,140.65,6.12561449]
[1633062337075,24.11076987,140.74,140.65,14.35845779]
[1633062337876,3.02,140.75,140.66,6.10629084]
[1633062341389,17.7836,140.74,140.66,6.10629084]
[1633062341585,28.88423029,140.73,140.65,8.2328433]
[1633062341786,66.31586168,140.73,140.65,8.2328433]
[1633062341988,5.63542961,140.72,140.63,6.16711449]
[1633062342186,8.65542961,140.72,140.66,8.23528435]
[1633062342387,40.45163139,140.72,140.63,8.23580548]
[1633062342586,5.63542961,140.71,140.61,6.17425506]
[1633062342786,35.87685436,140.7,140.61,6.17425506]
[1633062343187,5.63542961,140.69,140.61,6.17425506]
[1633062344510,5.63542961,140.69,140.6,8.23642811]
[1633062345107,37.43163139,140.69,140.6,8.23642811]
[1633062345505,5.63542961,140.68,140.6,8.23642811]
[1633062345706,28.69212718,140.67,140.6,8.23642811]
[1633062346107,5.63542961,140.66,140.6,8.23642811]
[1633062350314,8.23642811,140.6,140.58,8.23817648]
[1633062350511,22.83442811,140.6,140.56,8.23886763]
[1633062350711,24.01422371,140.59,140.54,8.2397372]
[1633062350914,24.01422371,140.59,140.52,8.23986808]
[1633062351311,29.64965332,140.59,140.52,8.23986808]
[1633062351510,29.64965332,140.59,140.51,8.24073861]
[1633062351712,29.64965332,140.59,140.5,8.24066985]
[1633062352315,24.01422371,140.59,140.5,8.24066985]
[1633062354117,29.64965332,140.59,140.5,8.24066985]
[1633062356822,5.63542961,140.59,140.5,8.24066985]
[1633062357018,8.23642811,140.6,140.5,8.24066985]
[1633062357221,8.23642811,140.6,140.51,3.02]
[1633062357418,8.23642811,140.6,140.52,8.23867696]
[1633062358022,8.23642811,140.6,140.53,3.02]
[1633062360021,8.23642811,140.6,140.51,3.02]
[1633062360222,8.23642811,140.6,140.52,8.23956201]
[1633062360823,11.25642811,140.6,140.52,8.23956201]
[1633062361021,11.25642811,140.6,140.5,8.23980655]
[1633062361224,5.63542961,140.59,140.5,8.23980655]
[1633062361424,27.93250441,140.58,140.5,8.23980655]
[1633062362224,11.25642811,140.6,140.5,8.23980655]
[1633062363233,25.60731439,140.59,140.5,8.23980655]
[1633062364427,25.60731439,140.59,140.53,2.0563223]
[1633062364628,16.89185772,140.6,140.53,2.0563223]
[1633062365030,16.89185772,140.6,140.54,2.05623513]
[1633062365536,16.89185772,140.6,140.53,2.05636761]
[1633062365730,25.50451046,140.59,140.53,2.05636761]
[1633062366130,31.13994007,140.59,140.53,2.05636761]
[1633062366932,3.02,140.58,140.53,2.05636761]
[1633062367334,8.65542961,140.58,140.53,2.05636761]
[1633062368435,8.65542961,140.58,140.54,2.05673169]
[1633062369236,11.25642811,140.6,140.56,2.05671451]
[1633062369435,11.25642811,140.6,140.55,2.05681062]
[1633062369636,5.63542961,140.59,140.55,2.05681062]
[1633062370039,26.18494074,140.58,140.55,2.05681062]
[1633062370841,26.18494074,140.58,140.56,2.05722053]
[1633062372241,26.18494074,140.58,140.57,2.05778403]
[1633062374640,26.18494074,140.58,140.56,2.05809351]
[1633062377241,26.18494074,140.58,140.57,2.05857066]
[1633062379042,3.02,140.58,140.57,7.066e-05]
[1633062379243,3.02,140.58,140.49,6.17811657]
[1633062379443,32.25520178,140.58,140.49,6.17811657]
[1633062380045,60.46617087,140.58,140.49,6.17811657]
[1633062380248,31.23096909,140.58,140.52,6.17799421]
[1633062381944,3.02,140.58,140.52,6.17799421]
[1633062382143,3.02,140.58,140.52,25.32399421]
[1633062382446,3.02,140.58,140.54,6.17724327]
[1633062386754,3.02,140.58,140.53,6.17726625]
[1633062387356,8.23642811,140.6,140.53,6.17726625]
[1633062387755,8.23642811,140.6,140.54,6.1769988]
[1633062391357,27.11613991,140.58,140.54,6.1769988]
[1633062391560,45.01613991,140.58,140.52,6.17805859]
[1633062391756,5.63542961,140.57,140.52,6.17805859]
[1633062392161,8.65542961,140.57,140.5,6.17871386]
[1633062392561,29.72467774,140.55,140.5,6.17871386]
[1633062392759,50.43867774,140.55,140.5,6.17871386]
[1633062393959,53.45867774,140.55,140.5,6.17871386]
[1633062394161,59.09410735,140.55,140.5,6.17871386]
[1633062394560,59.09410735,140.55,140.49,6.17846504]
[1633062396862,59.09410735,140.55,140.48,6.17826082]
[1633062400166,59.09410735,140.55,140.47,6.177875]
[1633062400365,59.09410735,140.55,140.49,8.24275999]
[1633062400568,59.09410735,140.55,140.47,6.177875]
[1633062401565,17.46546701,140.54,140.47,6.177875]
[1633062401866,3.02,140.53,140.47,5.677875]
[1633062402069,3.02,140.53,140.48,8.24284658]
[1633062402267,3.02,140.53,140.47,5.677875]
[1633062402467,8.65542961,140.53,140.49,8.24293388]
[1633062402666,37.8754575,140.53,140.47,5.677875]
[1633062402968,17.46546701,140.52,140.47,5.677875]
[1633062403168,26.88768335,140.5,140.44,22.83990418]
[1633062404168,26.88768335,140.5,140.41,8.24401195]
[1633062404368,8.65542961,140.49,140.41,8.24401195]
[1633062404571,8.65542961,140.49,140.39,22.82456622]
[1633062404767,8.65542961,140.49,140.39,8.24601455]
[1633062404768,26.12089662,140.49,140.39,8.24601455]
[1633062404967,8.65542961,140.49,140.36,3.02]
[1633062405173,8.65542961,140.49,140.37,8.24668372]
[1633062405368,26.12089662,140.49,140.37,8.24668372]
[1633062406571,5.63542961,140.48,140.37,8.24668372]
[1633062406770,3.02,140.47,140.37,8.24668372]
[1633062407172,8.65542961,140.47,140.37,8.24668372]
[1633062407372,30.23042961,140.47,140.37,8.24668372]
[1633062407771,47.69589662,140.47,140.37,8.24668372]
[1633062407971,65.51409662,140.47,140.37,8.24668372]
[1633062408175,65.51409662,140.47,140.34,8.26849696]
[1633062408972,94.73412451,140.47,140.34,8.26849696]
[1633062409674,94.73412451,140.47,140.34,0.02088]
[1633062410572,94.73412451,140.47,140.33,22.8215829]
[1633062411472,94.73412451,140.47,140.33,8.24841457]
[1633062411871,0.02088,140.46,140.33,8.24841457]
[1633062412071,3.02,140.45,140.33,8.24841457]
[1633062412274,26.074489,140.44,140.3,8.24984514]
[1633062412472,75.7775,140.43,140.34,7.74997254]
[1633062412674,75.7775,140.43,140.27,17.58860897]
[1633062412872,81.41292961,140.43,140.27,17.58860897]
[1633062413074,23.10089662,140.42,140.27,17.58860897]
[1633062413278,3.02,140.41,140.27,17.58860897]
[1633062413673,8.65542961,140.41,140.27,17.58860897]
[1633062415777,3.02,140.41,140.27,17.58860897]
[1633062416878,8.65542961,140.41,140.27,17.58860897]
[1633062420783,3.02,140.41,140.27,17.58860897]
[1633062421782,3.02,140.41,140.33,4.11709327]
[1633062423188,8.65542961,140.41,140.32,4.1175626]
[1633062423384,8.65542961,140.41,140.31,4.11798202]
[1633062423987,26.12089662,140.41,140.3,4.11808567]
[1633062424184,26.12089662,140.41,140.31,4.11807362]
[1633062424583,26.12089662,140.41,140.3,4.11813528]
[1633062426189,26.12089662,140.41,140.31,4.11797524]
[1633062428791,3.02,140.41,140.32,4.11817615]
[1633062429392,3.02,140.41,140.33,4.11779431]
[1633062429792,3.02,140.41,140.34,4.1181586]
[1633062431695,3.02,140.41,140.35,4.11935119]
[1633062431895,3.02,140.41,140.36,4.11936309]
[1633062433597,3.02,140.41,140.37,4.12083209]
[1633062434598,3.02,140.41,140.38,4.12114352]
[1633062435501,3.02,140.41,140.37,4.12127809]
[1633062435703,3.02,140.41,140.38,4.12163681]
[1633062437604,3.02,140.41,140.39,4.12226012]
[1633062438004,5.63542961,140.4,140.38,4.12262991]
[1633062438207,8.65542961,140.4,140.29,3.02]
[1633062438404,8.65542961,140.4,140.28,0.02088]
[1633062438604,34.8554575,140.39,140.27,14.08948897]
[1633062438802,3.02,140.38,140.27,14.08948897]
[1633062439005,8.65542961,140.38,140.27,14.08948897]
[1633062440503,3.02,140.38,140.27,14.08948897]
[1633062440904,3.02,140.38,140.27,40.75524431]
[1633062442206,8.65542961,140.38,140.27,40.75524431]
[1633062443107,3.02,140.38,140.27,40.75524431]
[1633062444908,3.02,140.38,140.27,51.06285286]
[1633062447513,3.02,140.4,140.28,3.02]
[1633062447913,12.4411587,140.43,140.28,33.27818012]
[1633062448113,3.02,140.43,140.28,33.29906012]
[1633062449116,3.02,140.43,140.3,10.30594323]
[1633062449314,3.02,140.43,140.31,3.02]
[1633062453320,3.02,140.43,140.31,13.32425222]
[1633062454528,3.02,140.45,140.32,5.63542961]
[1633062454746,9.68959035,140.47,140.33,3.02]
[1633062454921,81.2494,140.48,140.33,3.02]
[1633062455127,81.2494,140.48,140.34,5.63542961]
[1633062455321,78.2294,140.48,140.35,3.02]
[1633062455726,78.2294,140.48,140.36,5.63542961]
[1633062455929,78.2294,140.48,140.37,3.02]
[1633062456328,78.2294,140.48,140.37,8.65542961]
[1633062456928,78.2294,140.48,140.37,29.65742961]
[1633062460553,78.2294,140.48,140.37,24.022]
[1633062461654,78.2294,140.48,140.38,6.1768604]
[1633062461853,78.2294,140.48,140.39,3.02]
[1633062469161,78.2294,140.48,140.39,9.19591876]
[1633062474666,78.2294,140.48,140.4,6.17763402]
[1633062476868,78.2294,140.48,140.41,6.17873202]
[1633062478972,78.2294,140.48,140.42,6.17977077]
[1633062481070,78.2294,140.48,140.43,6.18036895]
[1633062483973,0.0212976,140.52,140.43,9.20036895]
[1633062484178,0.0212976,140.55,140.48,5.79196105]
[1633062484373,8.25772571,140.6,140.49,9.19881459]
[1633062484575,8.23642811,140.6,140.49,9.19881459]
[1633062485374,8.23642811,140.6,140.5,6.176184]
[1633062485574,8.23642811,140.6,140.51,3.02]